Workbook

Sheet RunSimul
A1: pRisk
A3: Parameter | B3: Value
A4: Number of simulations | B4: 3000
A5: Cell to analyse | B5: =RndNormal(RAND(),0,1) -> -0.2532176058
A6: Plot | B6: pdf
A7: Result: Mean | B7: -0.001216694042
A8: Result: SD | B8: 1.003694373
A9: Result: Min | B9: -3.43320322
A10: Result: Max | B10: 4.107541561

Sheet MCS
A1: Activity | B1: L | C1: M | D1: H | E1: Start | F1: Duration | G1: End | I1: Formulas, Start
I2: =showformula(E2) -> 
I3: =showformula(E3) -> 
I67: =showformula(E67) -> 
I68: =showformula(E68) -> 
I69: =showformula(E69) -> 

Sheet SSP
A1: Activity | B1: L | C1: M | D1: H | E1: mi | F1: si2 | G1: EiF | H1: ViF | J1: Formula ViF
E2: =(B2+4*C2+D2)/6 -> 0 | F2: =((E2-B2)*(D2-E2)/7) -> 0 | J2: =showformula(H2) -> 
E3: 0 | F3: 0 | J3: =showformula(H3) -> 
E4: 0 | F4: 0
E5: 0 | F5: 0
E6: 0 | F6: 0
E7: 0 | F7: 0
E8: =(B8+4*C8+D8)/6 -> 0 | F8: =((E8-B8)*(D8-E8)/7) -> 0
E9: =(B9+4*C9+D9)/6 -> 0 | F9: =((E9-B9)*(D9-E9)/7) -> 0
E10: =(B10+4*C10+D10)/6 -> 0 | F10: =((E10-B10)*(D10-E10)/7) -> 0
E11: =(B11+4*C11+D11)/6 -> 0 | F11: =((E11-B11)*(D11-E11)/7) -> 0
G13: E(Final)= | H13: =G11 -> 0
G14: SD(Final)= | H14: =SQRT(H11) -> 0
A16: Specification for Succesive Schedue Planning

Sheet PERT
A1: Activity | B1: L | C1: M | D1: H | E1: mi | F1: si2 | G1: In crit. Path | H1: E | I1: V
E2: =(B2+4*C2+D2)/6 -> 0 | F2: =((E2-B2)*(D2-E2)/7) -> 0 | H2: =E2*G2 -> 0 | I2: =F2*G2 -> 0
E3: =(B3+4*C3+D3)/6 -> 0 | F3: =((E3-B3)*(D3-E3)/7) -> 0 | H3: 0 | I3: =F3*G3 -> 0
E4: 0 | F4: 0 | H4: 0 | I4: 0
E5: 0 | F5: 0 | H5: 0 | I5: 0
E6: 0 | F6: 0 | H6: 0 | I6: 0
E7: 0 | F7: 0 | H7: 0 | I7: 0
E8: 0 | F8: 0 | H8: 0 | I8: 0
E9: 0 | F9: 0 | H9: 0 | I9: 0
E10: 0 | F10: 0 | H10: 0 | I10: 0
G14: Sum | H14: =SUM(H2:H13) -> 0 | I14: =SUM(I2:I13) -> 0 | J14: =SQRT(I14) -> 0

Sheet HelpFunc
L6: =cdfnormal(6,5,3) -> 0.6305585504

Sheet PDFs
A1: mu | B1: 180
A2: sigma | B2: 3
A5: x | B5: PDFNormal | C5: normdist
A6: 170 | B6: =pdfnormal(A6,mu,sigma) -> 0.0005140930134 | C6: =NORMDIST(A6,mu,sigma,TRUE) -> 0.0004290603332
A7: =A6+1 -> 171 | B7: =pdfnormal(A7,mu,sigma) -> 0.001477282846 | C7: =NORMDIST(A7,mu,sigma,TRUE) -> 0.001349898032
A8: =A7+1 -> 172 | B8: =pdfnormal(A8,mu,sigma) -> 0.003798662116 | C8: =NORMDIST(A8,mu,sigma,TRUE) -> 0.003830380568
A9: 173 | B9: =pdfnormal(A9,mu,sigma) -> 0.008740629946 | C9: =NORMDIST(A9,mu,sigma,TRUE) -> 0.009815328629
A10: 174 | B10: =pdfnormal(A10,mu,sigma) -> 0.01799698935 | C10: =NORMDIST(A10,mu,sigma,TRUE) -> 0.02275013195
A11: 175 | B11: =pdfnormal(A11,mu,sigma) -> 0.03315904721 | C11: =NORMDIST(A11,mu,sigma,TRUE) -> 0.04779035227
A12: 176 | B12: =pdfnormal(A12,mu,sigma) -> 0.05467002645 | C12: =NORMDIST(A12,mu,sigma,TRUE) -> 0.09121121973
A13: 177 | B13: =pdfnormal(A13,mu,sigma) -> 0.08065691046 | C13: =NORMDIST(A13,mu,sigma,TRUE) -> 0.1586552539
A14: 178 | B14: =pdfnormal(A14,mu,sigma) -> 0.1064826715 | C14: =NORMDIST(A14,mu,sigma,TRUE) -> 0.2524925375
A15: 179 | B15: =pdfnormal(A15,mu,sigma) -> 0.1257944128 | C15: =NORMDIST(A15,mu,sigma,TRUE) -> 0.3694413402
A16: 180 | B16: =pdfnormal(A16,mu,sigma) -> 0.1329807639 | C16: =NORMDIST(A16,mu,sigma,TRUE) -> 0.5
A17: 181 | B17: =pdfnormal(A17,mu,sigma) -> 0.1257944128 | C17: =NORMDIST(A17,mu,sigma,TRUE) -> 0.6305586598
A18: 182 | B18: =pdfnormal(A18,mu,sigma) -> 0.1064826715 | C18: =NORMDIST(A18,mu,sigma,TRUE) -> 0.7475074625
A19: 183 | B19: =pdfnormal(A19,mu,sigma) -> 0.08065691046 | C19: =NORMDIST(A19,mu,sigma,TRUE) -> 0.8413447461
A20: 184 | B20: =pdfnormal(A20,mu,sigma) -> 0.05467002645 | C20: =NORMDIST(A20,mu,sigma,TRUE) -> 0.9087887803
A21: 185 | B21: =pdfnormal(A21,mu,sigma) -> 0.03315904721 | C21: =NORMDIST(A21,mu,sigma,TRUE) -> 0.9522096477
A22: 186 | B22: =pdfnormal(A22,mu,sigma) -> 0.01799698935 | C22: =NORMDIST(A22,mu,sigma,TRUE) -> 0.9772498681
A23: 187 | B23: =pdfnormal(A23,mu,sigma) -> 0.008740629946 | C23: =NORMDIST(A23,mu,sigma,TRUE) -> 0.9901846714
A24: 188 | B24: =pdfnormal(A24,mu,sigma) -> 0.003798662116 | C24: =NORMDIST(A24,mu,sigma,TRUE) -> 0.9961696194
A25: 189 | B25: =pdfnormal(A25,mu,sigma) -> 0.001477282846 | C25: =NORMDIST(A25,mu,sigma,TRUE) -> 0.998650102
A26: 190 | B26: =pdfnormal(A26,mu,sigma) -> 0.0005140930134 | C26: =NORMDIST(A26,mu,sigma,TRUE) -> 0.9995709397
A30: L | B30: 2
A31: M | B31: 3
A32: H | B32: 4
B33: PERT | C33: Triangular
A34: =L -> 2 | B34: =pdfpert(A34,L,M,H) -> 0 | C34: =pdftriangular(A34,L,M,H) -> 0
A35: =A34+(H-L)/10 -> 2.2 | B35: =pdfpert(A35,L,M,H) -> 0.1215000587 | C35: =pdftriangular(A35,L,M,H) -> 0.2000000477
A36: =A35+(H-L)/10 -> 2.4 | B36: =pdfpert(A36,L,M,H) -> 0.3840001602 | C36: =pdftriangular(A36,L,M,H) -> 0.4000000954
A37: =A36+(H-L)/10 -> 2.6 | B37: =pdfpert(A37,L,M,H) -> 0.6614999193 | C37: =pdftriangular(A37,L,M,H) -> 0.5999999046
A38: =A37+(H-L)/10 -> 2.8 | B38: =pdfpert(A38,L,M,H) -> 0.8640000172 | C38: =pdftriangular(A38,L,M,H) -> 0.7999999523
A39: =A38+(H-L)/10 -> 3 | B39: =pdfpert(A39,L,M,H) -> 0.9375000559 | C39: =pdftriangular(A39,L,M,H) -> 1
A40: =A39+(H-L)/10 -> 3.2 | B40: =pdfpert(A40,L,M,H) -> 0.8640000172 | C40: =pdftriangular(A40,L,M,H) -> 0.7999999523
A41: =A40+(H-L)/10 -> 3.4 | B41: =pdfpert(A41,L,M,H) -> 0.6614999193 | C41: =pdftriangular(A41,L,M,H) -> 0.5999999046
A42: =A41+(H-L)/10 -> 3.6 | B42: =pdfpert(A42,L,M,H) -> 0.3840001602 | C42: =pdftriangular(A42,L,M,H) -> 0.4000000954
A43: =A42+(H-L)/10 -> 3.8 | B43: =pdfpert(A43,L,M,H) -> 0.1215000587 | C43: =pdftriangular(A43,L,M,H) -> 0.2000000477
A44: =A43+(H-L)/10 -> 4 | B44: =pdfpert(A44,L,M,H) -> 0 | C44: =pdftriangular(A44,L,M,H) -> 0

Sheet eMax
A1: mu1 | B1: 10
A2: mu2 | B2: 11
A3: sigma1 | B3: 2
A4: sigma2 | B4: 2
A6: eMax | B6: =emax(mu1_,sigma1^2,mu2_,sigma2^2) -> 11.69817066 | C6: =_xlfn.FORMULATEXT(B6) -> =emax(mu1_,sigma1^2,mu2_,sigma2^2)
A7: varMax | B7: =varmax(mu1_,sigma1^2,mu2_,sigma2^2) -> 2.814342022 | C7: =_xlfn.FORMULATEXT(B7) -> =varmax(mu1_,sigma1^2,mu2_,sigma2^2)
A8: SDMax | B8: =SQRT(B7) -> 1.677600078 | C8: =SQRT(B7)
A9: eMin | B9: =emin(mu1_,sigma1^2,mu2_,sigma2^2) -> 9.301829338 | C9: =_xlfn.FORMULATEXT(B9) -> =emin(mu1_,sigma1^2,mu2_,sigma2^2)

Sheet PDFPlot (hidden)
A1: x | B1: Probability density function
A2: -3.732875586 | B2: 0
A3: -3.732875586 | B3: 0
A4: -3.668747187 | B4: 0
A5: -3.604618788 | B5: 0
A6: -3.540490627 | B6: 0
A7: -3.476362228 | B7: 0
A8: -3.412233829 | B8: 0.0003333333298
A9: -3.348105431 | B9: 0
A10: -3.28397727 | B10: 0
A11: -3.219848871 | B11: 0.0003333333298
A12: -3.155720472 | B12: 0
A13: -3.091592073 | B13: 0.0006666666595
A14: -3.027463675 | B14: 0.0003333333298
A15: -2.963335514 | B15: 0.0009999999311
A16: -2.899207115 | B16: 0.0003333333298
A17: -2.835078716 | B17: 0.0003333333298
A18: -2.770950317 | B18: 0.0006666666595
A19: -2.706822157 | B19: 0.0009999999311
A20: -2.642693758 | B20: 0.002000000095
A21: -2.578565359 | B21: 0.0003333333298
A22: -2.51443696 | B22: 0.002000000095
A23: -2.4503088 | B23: 0.0006666666595
A24: -2.386180401 | B24: 0.001333333319
A25: -2.322052002 | B25: 0.002000000095
A26: -2.257923603 | B26: 0.001333333319
A27: -2.193795204 | B27: 0.003000000259
A28: -2.129667044 | B28: 0.003000000259
A29: -2.065538645 | B29: 0.001666666707
A30: -2.001410246 | B30: 0.001666666707
A31: -1.937281966 | B31: 0.00400000019
A32: -1.873153567 | B32: 0.002333333483
A33: -1.809025288 | B33: 0.003333333647
A34: -1.744896889 | B34: 0.006333333906
A35: -1.68076849 | B35: 0.006666667294
A36: -1.61664021 | B36: 0.008666667156
A37: -1.552511811 | B37: 0.00966666732
A38: -1.488383532 | B38: 0.00966666732
A39: -1.424255133 | B39: 0.00800000038
A40: -1.360126853 | B40: 0.01100000087
A41: -1.295998454 | B41: 0.01000000071
A42: -1.231870174 | B42: 0.01266666781
A43: -1.167741776 | B43: 0.01533333492
A44: -1.103613377 | B44: 0.0130000012
A45: -1.039485097 | B45: 0.01166666765
A46: -0.9753567576 | B46: 0.01533333492
A47: -0.9112284184 | B47: 0.01700000092
A48: -0.8471000195 | B48: 0.01333333459
A49: -0.7829716802 | B49: 0.01866666786
A50: -0.7188433409 | B50: 0.02133333497
A51: -0.6547150016 | B51: 0.01900000125
A52: -0.5905866623 | B52: 0.02500000224
A53: -0.526458323 | B53: 0.02633333579
A54: -0.4623299837 | B54: 0.02300000191
A55: -0.3982016444 | B55: 0.02366666868
A56: -0.3340732753 | B56: 0.0260000024
A57: -0.269944936 | B57: 0.01900000125
A58: -0.2058165967 | B58: 0.0260000024
A59: -0.1416882575 | B59: 0.02733333595
A60: -0.07755990326 | B60: 0.02700000256
A61: -0.01343156118 | B61: 0.02533333562
A62: 0.05069678277 | B62: 0.02366666868
A63: 0.1148251295 | B63: 0.02900000289
A64: 0.1789534688 | B64: 0.02400000207
A65: 0.243081823 | B65: 0.02400000207
A66: 0.3072101772 | B66: 0.02266666852
A67: 0.3713385165 | B67: 0.02100000158
A68: 0.4354668558 | B68: 0.02366666868
A69: 0.4995951951 | B69: 0.02533333562
A70: 0.5637235641 | B70: 0.02266666852
A71: 0.6278519034 | B71: 0.01966666803
A72: 0.6919802427 | B72: 0.01800000109
A73: 0.756108582 | B73: 0.01866666786
A74: 0.8202369213 | B74: 0.02200000174
A75: 0.8843652606 | B75: 0.01833333448
A76: 0.9484935999 | B76: 0.02000000142
A77: 1.012621999 | B77: 0.01400000136
A78: 1.076750278 | B78: 0.01366666798
A79: 1.140878677 | B79: 0.01366666798
A80: 1.205006957 | B80: 0.00966666732
A81: 1.269135356 | B81: 0.0103333341
A82: 1.333263636 | B82: 0.01100000087
A83: 1.397392035 | B83: 0.01266666781
A84: 1.461520433 | B84: 0.007000000682
A85: 1.525648713 | B85: 0.00566666713
A86: 1.589777112 | B86: 0.00566666713
A87: 1.653905392 | B87: 0.006000000518
A88: 1.718033791 | B88: 0.00566666713
A89: 1.78216207 | B89: 0.005333333742
A90: 1.846290469 | B90: 0.005333333742
A91: 1.910418749 | B91: 0.00566666713
A92: 1.974547148 | B92: 0.003666667035
A93: 2.038675547 | B93: 0.002000000095
A94: 2.102803946 | B94: 0.002333333483
A95: 2.166932106 | B95: 0.002666666871
A96: 2.231060505 | B96: 0.003333333647
A97: 2.295188904 | B97: 0.003000000259
A98: 2.359317303 | B98: 0.001333333319
A99: 2.423445463 | B99: 0.001333333319
A100: 2.487573862 | B100: 0.0003333333298
A101: 2.551702261 | B101: 0.0006666666595
A102: 2.61583066 | B102: 0.0009999999311
A103: 2.67995882 | B103: 0.0006666666595
A104: 3.962525845 | B104: 0.0006666666595
